bitfinex-derivatives/quotes_BNBF0:USTF0_20251027
["timestamp","ask_amount","ask_price","bid_price","bid_amount"]
[1761541790468,0.15177849,1147.9,1145.5,0.64302723]
[1761541790767,0.15177849,1147.9,1145.6,0.55545242]
[1761541790969,2.30278572,1147.9,1145.7,0.55545242]
[1761541791168,2.30278572,1147.9,1145.4,0.64302723]
[1761541791169,2.30278572,1147.9,1145.8,0.55545242]
[1761541791369,2.30278572,1147.9,1145.4,0.64302723]
[1761541791567,0.15177849,1147.9,1145.5,0.55542488]
[1761541791768,0.15177849,1147.9,1145.6,0.55542488]
[1761541791970,0.15177849,1147.9,1145.7,0.55542488]
[1761541792166,0.15177849,1147.9,1145.8,0.55542488]
[1761541792366,0.15177849,1147.9,1145.9,0.55542488]
[1761541792566,0.15177849,1147.9,1145.4,0.64302723]
[1761541792769,0.15177849,1147.9,1145.5,0.55538375]
[1761541792970,0.15177849,1147.9,1145.6,0.55538375]
[1761541793170,0.15177849,1147.9,1145.7,0.55538375]
[1761541793470,0.15177849,1147.9,1145.8,0.55538375]
[1761541793668,0.15177849,1147.9,1145.9,0.55538375]
[1761541793867,0.15177849,1147.9,1145.5,0.64302723]
[1761541794066,0.15177849,1147.9,1145.6,0.55531708]
[1761541794265,0.15177849,1147.9,1145.7,0.55531708]
[1761541794467,0.15177849,1147.9,1145.8,0.55531708]
[1761541794668,0.15177849,1147.9,1145.9,0.55531708]
[1761541794969,0.15177849,1147.9,1145.5,0.64302723]
[1761541795170,0.15177849,1147.9,1145.6,0.55525838]
[1761541795364,0.15177849,1147.9,1145.7,0.55525838]
[1761541795566,0.15177849,1147.9,1145.8,0.55525838]
[1761541795767,0.15177849,1147.9,1145.9,0.55525838]
[1761541796066,0.15177849,1147.9,1145.5,0.64302723]
[1761541796270,0.15177849,1147.9,1145.6,0.55528754]
[1761541796471,0.15177849,1147.9,1145.7,0.55528754]
[1761541796672,0.15177849,1147.9,1145.8,0.55528754]
[1761541796969,0.15177849,1147.9,1145.9,0.55528754]
[1761541797168,0.15177849,1147.9,1145.5,0.64302723]
[1761541797473,0.15177849,1147.9,1145.6,0.55524256]
[1761541797766,0.15177849,1147.9,1145.4,0.64302723]
[1761541797767,0.15177849,1147.9,1145.7,0.55524256]
[1761541797970,0.15177849,1147.9,1145.8,0.55524256]
[1761541798168,0.15177849,1147.9,1145.9,0.55524256]
[1761541798373,0.15177849,1147.9,1145.4,0.64302723]
[1761541798670,0.15177849,1147.9,1145.5,0.55519926]
[1761541798874,0.15177849,1147.9,1145.6,0.55519926]
[1761541799071,0.15177849,1147.9,1145.7,0.55519926]
[1761541799270,0.15177849,1147.9,1145.8,0.55519926]
[1761541799471,0.15177849,1147.9,1145.9,0.55519926]
[1761541799680,0.15177849,1147.9,1145.4,0.65005151]
[1761541799880,0.15177849,1147.9,1145.5,0.55516787]
[1761541800069,0.15177849,1147.9,1145.6,0.55516787]
[1761541800380,0.15177849,1147.9,1145.7,0.55516787]
[1761541800570,0.15177849,1147.9,1145.8,0.55516787]
[1761541800773,0.15177849,1147.9,1145.9,0.55516787]
[1761541800973,0.15177849,1147.9,1146.0,0.55516787]
[1761541801172,0.15177849,1147.9,1146.1,0.55516787]
[1761541801370,0.15177849,1147.9,1145.5,0.65005151]
[1761541801573,0.15177849,1147.9,1145.6,0.55514123]
[1761541801869,0.15177849,1147.9,1145.7,0.55514123]
[1761541802070,0.15177849,1147.9,1145.8,0.55514123]
[1761541802273,0.15177849,1147.9,1145.9,0.55514123]
[1761541802474,0.15177849,1147.9,1146.0,0.55514123]
[1761541802674,0.15177849,1147.9,1146.1,0.55514123]
[1761541802874,0.15177849,1147.9,1145.5,0.65005151]
[1761541803174,0.15177849,1147.9,1145.6,0.5551117]
[1761541803470,0.15177849,1147.9,1145.7,0.5551117]
[1761541803769,0.15177849,1147.9,1145.8,0.5551117]
[1761541803970,0.15177849,1147.9,1145.9,0.5551117]
[1761541804173,0.15177849,1147.9,1146.0,0.5551117]
[1761541804471,0.15177849,1147.9,1145.4,0.65005151]
[1761541804674,0.15177849,1147.9,1145.5,0.55506892]
[1761541804875,0.15177849,1147.9,1145.6,0.55506892]
[1761541805170,0.15177849,1147.9,1145.7,0.55506892]
[1761541805367,0.15177849,1147.9,1145.8,0.55506892]
[1761541805572,0.15177849,1147.9,1145.5,0.65005151]
[1761541805775,0.15177849,1147.9,1145.6,0.55507008]
[1761541806070,0.15177849,1147.9,1145.7,0.55507008]
[1761541806274,0.15177849,1147.9,1145.4,0.65005151]
[1761541806475,0.15177849,1147.9,1145.5,0.555109]
[1761541806669,0.15177849,1147.9,1145.6,0.555109]
[1761541806972,0.15177849,1147.9,1145.7,0.555109]
[1761541807170,0.15177849,1147.9,1145.4,0.65005151]
[1761541807375,0.15177849,1147.9,1145.5,0.55510548]
[1761541807573,0.15177849,1147.9,1145.6,0.55510548]
[1761541807874,0.15177849,1147.9,1145.7,0.55510548]
[1761541808072,0.15177849,1147.9,1145.4,0.65005151]
[1761541808371,0.15177849,1147.9,1145.5,0.55507495]
[1761541808571,0.15177849,1147.9,1145.6,1.93407495]
[1761541808774,0.15177849,1147.9,1145.7,0.55507495]
[1761541808973,0.15177849,1147.9,1145.6,1.379]
[1761541809172,0.15177849,1147.9,1145.7,0.55510433]
[1761541809372,0.15177849,1147.9,1145.8,0.55510433]
[1761541809580,0.15177849,1147.9,1145.6,1.379]
[1761541809779,0.15177849,1147.9,1145.7,0.55510374]
[1761541809977,0.15177849,1147.9,1145.8,0.55510374]
[1761541810179,0.15177849,1147.9,1145.6,1.379]
[1761541810474,0.15177849,1147.9,1145.7,0.55506931]
[1761541810676,0.15177849,1147.9,1145.8,0.55506931]
[1761541810876,0.15177849,1147.9,1145.6,1.379]
[1761541811076,0.15177849,1147.9,1145.7,0.55509907]
[1761541811277,0.15177849,1147.9,1145.6,1.379]
[1761541811477,0.15177849,1147.9,1145.7,0.55509451]
[1761541811676,0.15177849,1147.9,1145.6,1.379]
[1761541811878,0.15177849,1147.9,1145.7,0.5550944]
[1761541812078,0.15177849,1147.9,1145.6,1.379]
[1761541812276,0.15177849,1147.9,1145.7,0.55506007]
[1761541812477,0.15177849,1147.9,1145.6,1.379]
[1761541812675,0.15177849,1147.9,1145.7,0.55509048]
[1761541812876,0.15177849,1147.9,1145.6,1.379]
[1761541813076,0.15177849,1147.9,1145.7,0.55509048]
[1761541813277,0.15177849,1147.9,1145.6,1.379]
[1761541813278,0.15177849,1147.9,1145.8,0.55509048]
[1761541813582,0.15177849,1147.9,1145.6,1.379]
[1761541813780,0.15177849,1147.9,1145.7,0.55509689]
[1761541814083,0.15177849,1147.9,1145.6,1.379]
[1761541814780,0.15177849,1147.9,1145.7,0.55512765]
[1761541815077,0.15177849,1147.9,1145.6,1.379]
[1761541815277,0.15177849,1147.9,1145.7,0.55511908]
[1761541815481,0.15177849,1147.9,1145.6,1.379]
[1761541815681,0.15177849,1147.9,1145.7,0.55515369]
[1761541815881,0.15177849,1147.9,1145.6,1.379]
[1761541816077,0.15177849,1147.9,1145.7,0.55515369]
[1761541816281,0.15177849,1147.9,1145.6,1.379]
[1761541816481,0.15177849,1147.9,1145.7,0.55517322]
[1761541816681,0.15177849,1147.9,1145.6,1.379]
[1761541816880,0.15177849,1147.9,1145.7,0.55517301]
[1761541817083,0.15177849,1147.9,1145.6,1.379]
[1761541817281,0.15177849,1147.9,1145.7,0.55516506]
[1761541817484,0.15177849,1147.9,1145.6,1.379]
[1761541817686,0.15177849,1147.9,1145.7,0.55519906]
[1761541817986,0.15177849,1147.9,1145.6,1.379]
[1761541818186,0.15177849,1147.9,1145.7,0.55519906]
[1761541818384,0.15177849,1147.9,1145.6,1.379]
[1761541818581,0.15177849,1147.9,1145.7,0.55528136]
[1761541818886,0.15177849,1147.9,1145.6,1.379]
[1761541819087,0.15177849,1147.9,1145.7,0.55528094]
[1761541819287,0.15177849,1147.9,1145.6,1.379]
[1761541819486,0.15177849,1147.9,1145.7,0.55539888]
[1761541819683,0.15177849,1147.9,1145.6,1.379]
[1761541819888,0.15177849,1147.9,1145.7,0.55539888]
[1761541820087,0.15177849,1147.9,1145.6,1.379]
[1761541820288,0.15177849,1147.9,1145.7,0.55550714]
[1761541820584,0.15177849,1147.9,1145.6,1.379]
[1761541820785,0.15177849,1147.9,1145.7,0.55553696]
[1761541820987,0.15177849,1147.9,1145.6,1.379]
[1761541821289,0.15177849,1147.9,1145.7,0.55553696]
[1761541821488,0.15177849,1147.9,1145.6,1.379]
[1761541821686,0.15177849,1147.9,1145.7,0.55568169]
[1761541821890,0.15177849,1147.9,1145.6,1.379]
[1761541822091,0.15177849,1147.9,1145.7,0.55568127]
[1761541822393,0.15177849,1147.9,1145.6,1.379]
[1761541822589,0.15177849,1147.9,1145.7,0.55585249]
[1761541822786,0.15177849,1147.9,1145.6,1.379]
[1761541822787,2.15100723,1147.8,1145.6,1.379]
[1761541823091,2.15100723,1147.8,1145.7,0.55585207]
[1761541823288,2.15100723,1147.8,1145.6,1.379]
[1761541823587,2.30278572,1147.9,1145.7,0.55602902]
[1761541823792,2.30278572,1147.9,1145.6,1.379]
[1761541823991,2.30278572,1147.9,1145.7,0.55602838]
[1761541824189,2.30278572,1147.9,1145.6,1.379]
[1761541824387,0.15177849,1147.9,1145.7,0.55623371]
[1761541824589,0.15177849,1147.9,1145.8,0.55623371]
[1761541824788,0.15177849,1147.9,1145.9,0.55623371]
[1761541825089,0.15177849,1147.9,1146.0,0.55623371]
[1761541825291,0.15177849,1147.9,1146.1,0.55623371]
[1761541825593,0.15177849,1147.9,1146.2,0.55623371]
[1761541825892,0.15177849,1147.9,1145.6,2.02905151]
[1761541826089,0.15177849,1147.9,1145.7,0.55618201]
[1761541826291,0.15177849,1147.9,1145.8,0.55618201]
[1761541826587,0.15177849,1147.9,1145.9,0.55618201]
[1761541826792,0.15177849,1147.9,1146.0,0.55618201]
[1761541827087,0.15177849,1147.9,1146.1,0.55618201]
[1761541827288,0.15177849,1147.9,1145.6,2.02905151]
[1761541827491,0.15177849,1147.9,1145.7,0.55652922]
[1761541827692,0.15177849,1147.9,1145.8,0.55652922]
[1761541827992,0.15177849,1147.9,1145.9,0.55652922]
[1761541828293,0.15177849,1147.9,1146.0,0.55652922]
[1761541828488,0.15177849,1147.9,1146.1,0.55652922]
[1761541828693,0.15177849,1147.9,1145.6,2.02905151]
[1761541828892,0.15177849,1147.9,1145.7,0.55667802]
[1761541829092,0.15177849,1147.9,1145.8,0.55667802]
[1761541829292,0.15177849,1147.9,1145.9,0.55667802]
[1761541829490,0.15177849,1147.9,1146.0,0.55667802]
[1761541829690,0.15177849,1147.9,1146.1,0.55667802]
[1761541829890,0.15177849,1147.9,1145.7,0.65005151]
[1761541830092,0.15177849,1147.9,1145.8,0.5568488]
[1761541830395,0.15177849,1147.9,1145.9,0.5568488]
[1761541830594,0.15177849,1147.9,1146.0,0.5568488]
[1761541830896,0.15177849,1147.9,1145.6,1.379]
[1761541830897,0.15177849,1147.9,1145.6,2.02905151]
[1761541831097,0.15177849,1147.9,1145.7,1.20708606]
[1761541831393,0.15177849,1147.9,1145.8,0.55703455]
[1761541831596,0.15177849,1147.9,1145.9,0.55703455]
[1761541831797,2.15100723,1147.8,1146.0,0.55703455]
[1761541832096,2.15100723,1147.8,1145.7,0.65005151]
[1761541832294,2.15100723,1147.8,1145.8,0.55730483]
[1761541832494,2.15100723,1147.8,1145.9,0.55730483]
[1761541832694,2.15100723,1147.8,1146.0,0.55730483]
[1761541833001,2.15100723,1147.8,1145.7,0.65005151]
[1761541833293,2.15100723,1147.8,1145.8,0.557303]
[1761541833492,2.15100723,1147.8,1145.7,0.65005151]
[1761541833493,2.15100723,1147.8,1145.9,0.557303]
[1761541833692,2.15100723,1147.8,1146.0,0.557303]
[1761541833895,2.15100723,1147.8,1145.7,0.65005151]
[1761541834093,2.15100723,1147.8,1145.8,0.55728872]
[1761541834293,2.15100723,1147.8,1145.9,0.55728872]
[1761541834495,2.15100723,1147.8,1146.0,0.55728872]
[1761541834694,2.15100723,1147.8,1145.7,0.65005151]
[1761541834894,2.15100723,1147.8,1145.8,0.55727425]
[1761541835093,2.15100723,1147.8,1145.9,0.55727425]
[1761541835297,2.15100723,1147.8,1146.0,0.55727425]
[1761541835496,2.15100723,1147.8,1145.7,0.65005151]
[1761541835695,2.15100723,1147.8,1145.8,0.55726637]
[1761541835899,2.15100723,1147.8,1145.9,0.55726637]
[1761541836094,2.15100723,1147.8,1146.0,0.55726637]
[1761541836295,2.15100723,1147.8,1145.7,0.65005151]
[1761541836499,2.15100723,1147.8,1145.8,0.5572554]
[1761541836697,2.15100723,1147.8,1145.9,0.5572554]
[1761541836900,2.15100723,1147.8,1146.0,0.5572554]
[1761541837096,2.15100723,1147.8,1145.7,0.65005151]
[1761541837296,2.15100723,1147.8,1145.8,0.55724234]
[1761541837497,2.30278572,1147.9,1145.9,0.55724234]
[1761541837701,2.30278572,1147.9,1146.0,0.55724234]
[1761541837897,2.30278572,1147.9,1145.7,0.65005151]
[1761541838102,2.30278572,1147.9,1145.8,0.55724521]
[1761541838300,2.30278572,1147.9,1145.7,0.65005151]
[1761541838301,2.30278572,1147.9,1145.9,0.55724521]
[1761541838603,2.30278572,1147.9,1146.0,0.55724521]
[1761541838799,2.30278572,1147.9,1145.7,0.65005151]
[1761541839098,2.30278572,1147.9,1145.8,0.55723662]
[1761541839298,2.30278572,1147.9,1145.9,0.55723662]
[1761541839498,2.15100723,1147.9,1146.0,0.55723662]
[1761541839701,2.15100723,1147.9,1145.7,0.65005151]
[1761541839897,2.15100723,1147.9,1145.8,0.55722729]
[1761541840102,0.15178048,1148.1,1145.9,0.55722729]
[1761541840403,0.15178048,1148.1,1146.0,0.55722729]
[1761541840601,0.15178048,1148.1,1146.1,0.55722729]
[1761541840802,0.15178048,1148.1,1146.2,0.55722729]
[1761541841003,0.15178048,1148.1,1146.3,0.55722729]
[1761541841199,0.15178048,1148.1,1145.8,0.65005151]
[1761541841403,0.15178048,1148.1,1145.9,0.55713073]
[1761541841600,0.15178048,1148.1,1146.0,0.55713073]
[1761541841902,0.15178048,1148.1,1146.1,0.55713073]
[1761541842101,0.15178048,1148.1,1146.2,0.55713073]
[1761541842299,0.15178048,1148.1,1146.3,0.55713073]
[1761541842500,0.15178048,1148.1,1145.8,0.65005151]
[1761541842800,0.15178048,1148.1,1145.9,0.55710352]
[1761541843100,0.15178048,1148.1,1146.0,0.55710352]
[1761541843401,0.15178048,1148.1,1146.1,0.55710352]
[1761541843600,0.15178048,1148.1,1146.2,0.55710352]
[1761541843901,0.15178048,1148.1,1146.3,0.55710352]
[1761541844105,0.15178048,1148.1,1145.8,0.65005151]
[1761541844304,0.15178048,1148.1,1145.9,0.55707254]
[1761541844501,0.15178048,1148.1,1146.0,0.55707254]
[1761541844705,0.15178048,1148.1,1146.1,0.55707254]
[1761541844906,0.15178048,1148.1,1146.2,0.55707254]
[1761541845105,0.15178048,1148.1,1146.3,0.55707254]
[1761541845307,0.15178048,1148.1,1145.8,0.65005151]
[1761541845506,0.15178048,1148.1,1145.9,0.55704116]
[1761541845806,0.15178048,1148.1,1146.0,0.55704116]
[1761541846007,0.15178048,1148.1,1146.1,0.55704116]
[1761541846208,2.15100723,1149.3,1146.3,0.65005151]
[1761541846403,0.15170703,1148.7,1146.4,0.55704116]
[1761541846603,0.15170703,1148.7,1146.5,0.55704116]
[1761541846807,0.15170703,1148.7,1146.6,0.55704116]
[1761541847003,0.15170703,1148.7,1146.7,0.55704116]
[1761541847203,0.15170703,1148.7,1146.8,0.55704116]
[1761541847504,0.15170703,1148.7,1146.1,0.65005151]
[1761541847704,0.15170703,1148.7,1146.2,0.55594233]
[1761541847907,0.15170703,1148.7,1146.3,0.55594233]
[1761541848108,0.15170703,1148.7,1146.4,0.55594233]
[1761541848307,0.15170703,1148.7,1146.5,0.55594233]
[1761541848603,0.15170703,1148.7,1146.6,0.55594233]
[1761541848807,0.15170703,1148.7,1146.7,0.55594233]
[1761541849007,0.15170703,1148.7,1146.8,0.55594233]
[1761541849208,0.15170703,1148.7,1146.1,0.65005151]
[1761541849409,0.15170703,1148.7,1146.2,0.55538495]
[1761541849606,0.15170703,1148.7,1146.3,0.55538495]
[1761541849806,0.15170703,1148.7,1146.4,0.55538495]
[1761541850005,0.15170703,1148.7,1146.5,0.55538495]
[1761541850210,0.15170703,1148.7,1146.6,0.55538495]
[1761541850409,0.15170703,1148.7,1145.3,1.30287772]
[1761541850410,0.15170703,1148.7,1146.7,0.55538495]
[1761541850610,0.15170703,1148.7,1146.0,0.65005151]
[1761541850906,0.15170703,1148.7,1146.1,0.55514927]
[1761541851109,0.15170703,1148.7,1146.2,0.55514927]
[1761541851307,0.15170703,1148.7,1146.3,0.55514927]
[1761541851506,0.15170703,1148.7,1146.4,0.55514927]
[1761541851709,0.15170703,1148.7,1146.5,0.55514927]
[1761541851910,0.15170703,1148.7,1146.6,0.55514927]
[1761541852208,0.15170703,1148.7,1146.7,0.55514927]
[1761541852410,0.15170703,1148.7,1146.0,0.65005151]
[1761541852610,0.15170703,1148.7,1146.1,0.55474151]
[1761541852807,0.15170703,1148.7,1146.2,0.55474151]
[1761541853011,0.15170703,1148.7,1146.3,0.55474151]
[1761541853212,0.15170703,1148.7,1146.4,0.55474151]
[1761541853509,0.15170703,1148.7,1146.5,0.55474151]
[1761541853708,0.15170703,1148.7,1146.6,0.55474151]
[1761541853908,0.15170703,1148.7,1146.7,0.55474151]
[1761541854114,0.15170703,1148.7,1146.5,1.258]
[1761541854409,0.15170703,1148.7,1146.6,0.5545243]
[1761541854613,0.15170703,1148.7,1146.5,1.258]
[1761541854908,0.15170703,1148.7,1146.6,0.55439279]
[1761541855109,0.15170703,1148.7,1146.5,1.258]
[1761541855311,0.15170703,1148.7,1146.6,0.55435356]
[1761541855510,0.15170703,1148.7,1146.5,1.258]
[1761541855711,0.15170703,1148.7,1146.6,0.55422313]
[1761541855911,0.15170703,1148.7,1146.5,1.258]
[1761541856113,0.15170703,1148.7,1146.6,0.55422291]
[1761541856312,0.15170703,1148.7,1146.5,1.258]
[1761541856510,0.15170703,1148.7,1146.6,0.55432677]
[1761541856713,0.15170703,1148.7,1146.5,1.258]
[1761541856913,0.15170703,1148.7,1146.6,0.55431745]
[1761541857212,0.15170703,1148.7,1146.5,1.258]
[1761541857412,0.15170703,1148.7,1146.6,0.55415907]
[1761541857714,0.15170703,1148.7,1146.5,1.258]
[1761541857911,0.15170703,1148.7,1146.6,0.55415864]
[1761541858113,0.15170703,1148.7,1146.5,1.258]
[1761541858417,0.15170703,1148.7,1146.6,0.55411524]
[1761541858713,0.15170703,1148.7,1146.5,1.258]
[1761541858917,0.15170703,1148.7,1146.6,0.55400983]
[1761541859115,0.15170703,1148.7,1146.5,1.258]
[1761541859313,0.15170703,1148.7,1146.6,0.55396567]
[1761541859511,0.15170703,1148.7,1146.5,1.258]
[1761541859811,0.15170703,1148.7,1146.6,0.55386767]
[1761541860015,0.15170703,1148.7,1146.5,1.258]
[1761541860317,0.15170703,1148.7,1146.6,0.55386724]
[1761541860518,0.15170703,1148.7,1146.5,1.258]
[1761541860718,0.15170703,1148.7,1146.6,0.55385618]
[1761541860919,0.15170703,1148.7,1146.7,0.55384419]
[1761541861219,0.15170703,1148.7,1146.5,1.258]
[1761541861419,0.15170703,1148.7,1146.6,0.55369578]
[1761541861617,0.15170703,1148.7,1146.7,0.55369578]
[1761541861816,0.15170703,1148.7,1146.5,1.258]
[1761541862017,0.15170703,1148.7,1146.6,0.55369546]
[1761541862217,0.15170703,1148.7,1146.7,0.55369546]
[1761541862417,0.15170703,1148.7,1146.5,1.258]
[1761541862617,0.15170703,1148.7,1146.6,0.55355229]
[1761541862819,0.15170703,1148.7,1146.7,0.55355229]
[1761541863019,0.15170703,1148.7,1146.5,1.258]
[1761541863222,0.15170703,1148.7,1146.6,0.55355229]
[1761541863421,0.15170703,1148.7,1146.5,1.258]
[1761541863422,0.15170703,1148.7,1146.7,0.55355229]
[1761541863620,0.15170703,1148.7,1146.5,1.258]
[1761541863820,0.15170703,1148.7,1146.6,0.55341958]
[1761541864019,0.15170703,1148.7,1146.7,0.55341958]
[1761541864223,0.15170703,1148.7,1146.5,1.258]
[1761541864424,0.15170703,1148.7,1146.6,0.55329882]
[1761541864619,0.15170703,1148.7,1146.7,0.55329882]
[1761541864825,0.15170703,1148.7,1146.5,1.258]
[1761541865125,0.15170703,1148.7,1146.6,0.55329882]
[1761541865424,0.15170703,1148.7,1146.7,0.55329882]
[1761541865719,0.15170703,1148.7,1146.5,1.258]
[1761541865920,0.15170703,1148.7,1146.6,0.55318671]
[1761541866119,0.15170703,1148.7,1146.7,0.55318671]
[1761541866321,0.15170703,1148.7,1146.5,1.258]
[1761541866520,0.15170703,1148.7,1146.6,0.55311308]
[1761541866720,0.15170703,1148.7,1146.7,0.55311308]
[1761541866921,0.15170703,1148.7,1146.5,1.258]
[1761541867120,0.15170703,1148.7,1146.6,0.55311276]
[1761541867322,0.15170703,1148.7,1146.5,1.258]
[1761541867323,0.15170703,1148.7,1146.7,0.55311276]
[1761541867522,0.15170703,1148.7,1146.5,1.258]
[1761541867723,0.15170703,1148.7,1146.6,0.5530495]
[1761541867925,0.15170703,1148.7,1146.7,0.5530495]
[1761541868122,0.15170703,1148.7,1146.5,1.258]
[1761541868324,0.15170703,1148.7,1146.6,0.55300199]
[1761541868523,0.15170703,1148.7,1146.7,0.55300199]
[1761541868721,0.15170703,1148.7,1146.5,1.258]
[1761541869022,0.15170703,1148.7,1146.6,0.55299339]
[1761541869225,2.15100723,1149.9,1146.7,0.55299339]
[1761541869527,0.1516145,1149.2,1146.8,0.55299339]
[1761541869726,0.1516145,1149.2,1146.9,0.55299339]
[1761541869926,0.1516145,1149.2,1147.0,0.55299339]
[1761541870124,0.1516145,1149.2,1147.1,0.55299339]
[1761541870427,0.1516145,1149.2,1146.7,0.65005151]
[1761541870722,0.1516145,1149.2,1146.8,0.55255825]
[1761541870923,0.1516145,1149.2,1146.9,0.55255825]
[1761541871124,0.1516145,1149.2,1147.0,0.55255825]
[1761541871329,0.1516145,1149.2,1147.1,0.55255825]
[1761541871527,0.1516145,1149.2,1146.7,0.65005151]
[1761541871827,0.1516145,1149.2,1146.8,0.55235802]
[1761541872029,0.1516145,1149.2,1146.9,0.55235802]
[1761541872230,0.1516145,1149.2,1147.0,0.55235802]
[1761541872525,0.1516145,1149.2,1147.1,0.55235802]
[1761541872730,0.1516145,1149.2,1146.7,0.65005151]
[1761541872930,0.1516145,1149.2,1146.8,0.55217372]
[1761541873129,0.1516145,1149.2,1146.9,0.55217372]
[1761541873332,0.1516145,1149.2,1147.0,0.55217372]
[1761541873527,0.1516145,1149.2,1147.1,0.55217372]
[1761541873725,2.15100723,1150.1,1147.2,0.5520004]
[1761541873925,2.9994637,1150.6,1147.3,0.5520004]
[1761541874128,0.15157554,1149.4,1146.8,0.65005151]
[1761541874334,2.9994637,1150.6,1146.9,0.55169454]
[1761541874529,0.15154979,1149.7,1147.2,0.65005151]
[1761541874730,0.15154979,1149.7,1147.3,0.55169454]
[1761541875029,0.15154979,1149.7,1147.4,0.55169454]
[1761541875227,0.15154979,1149.7,1147.5,0.55169454]
[1761541875430,0.15154979,1149.7,1147.6,0.55169454]
[1761541875727,0.15154979,1149.7,1147.2,0.65005151]
[1761541875926,0.15154979,1149.7,1147.3,0.55131784]
[1761541876228,0.15154979,1149.7,1147.4,0.55131784]
[1761541876430,0.15154979,1149.7,1147.5,0.55131784]
[1761541876626,0.15154979,1149.7,1147.6,0.55131784]
[1761541876931,0.15154979,1149.7,1147.2,0.65005151]
[1761541877227,0.15154979,1149.7,1147.3,0.5510137]
[1761541877531,2.15100723,1150.9,1147.4,0.5510137]
[1761541877729,0.15150361,1150.0,1147.5,0.5510137]
[1761541878031,0.15150361,1150.0,1147.6,0.5510137]
[1761541878228,0.15150361,1150.0,1147.7,0.5510137]
[1761541878528,0.15150361,1150.0,1147.3,0.65005151]
[1761541878829,0.15150361,1150.0,1147.4,0.55039099]
[1761541879127,0.15150361,1150.0,1147.5,0.55039099]
[1761541879428,0.15150361,1150.0,1147.3,0.65005151]
[1761541879429,0.15150361,1150.0,1147.6,0.55039099]
[1761541879629,0.15150361,1150.0,1147.7,0.55039099]
[1761541879829,0.15150361,1150.0,1147.8,0.55039099]
[1761541880035,0.15150361,1150.0,1147.3,0.65005151]
[1761541880233,0.15150361,1150.0,1147.4,0.55010175]
[1761541880431,0.15150361,1150.0,1147.5,0.55010175]
[1761541880629,0.15150361,1150.0,1147.6,0.55010175]
[1761541880836,0.15150361,1150.0,1147.7,0.55010175]
[1761541881033,0.15150361,1150.0,1147.1,0.65005151]
[1761541881230,0.15150361,1150.0,1147.2,0.54986648]
[1761541881431,0.15150361,1150.0,1147.3,0.54986648]
[1761541881735,0.15150361,1150.0,1147.4,0.54986648]
[1761541882036,0.15150361,1150.0,1147.5,0.54986648]
[1761541882231,0.15150361,1150.0,1147.6,0.54986648]
[1761541882536,0.15150361,1150.0,1147.7,0.54986648]
[1761541882831,0.15150361,1150.0,1147.8,0.54986648]
[1761541883032,0.15150361,1150.0,1147.3,0.65005151]
[1761541883238,0.15150361,1150.0,1147.4,0.54931133]
[1761541883436,0.15150361,1150.0,1147.5,0.54931133]
[1761541883638,0.15150361,1150.0,1147.6,0.54931133]
[1761541883933,0.15150361,1150.0,1147.7,0.54931133]
[1761541884138,0.15150361,1150.0,1147.8,0.54931133]
[1761541884336,0.15150361,1150.0,1147.3,0.65005151]
[1761541884539,0.15150361,1150.0,1147.4,0.54896397]
[1761541884834,0.15150361,1150.0,1147.5,0.54896397]
[1761541885035,2.15100723,1151.2,1147.6,0.54896397]
[1761541885238,4.2849482,1153.4,1147.5,0.65005151]
[1761541885239,2.15100723,1151.4,1147.7,1.19901548]
[1761541885438,0.15144097,1150.4,1147.8,0.54896397]
[1761541885636,0.15144097,1150.4,1147.9,0.54896397]
[1761541885838,0.15144097,1150.4,1148.0,0.54896397]
[1761541886039,0.15144097,1150.4,1147.7,0.65005151]
[1761541886238,0.15144097,1150.4,1147.8,0.54828025]
[1761541886433,0.15144097,1150.4,1147.9,0.54828025]
[1761541886635,0.15144097,1150.4,1148.0,0.54828025]
[1761541886938,0.15144097,1150.4,1147.6,0.65005151]
[1761541887138,0.15144097,1150.4,1147.7,0.5476607]
[1761541887336,0.15144097,1150.4,1147.8,0.5476607]
[1761541887540,0.15144097,1150.4,1147.9,0.5476607]
[1761541887840,0.15144097,1150.4,1148.0,0.5476607]
[1761541888039,0.15144097,1150.4,1148.1,0.5476607]
[1761541888239,0.15144097,1150.4,1147.6,0.65005151]
[1761541888540,0.15144097,1150.4,1147.7,0.54706961]
[1761541888739,0.15144097,1150.4,1147.8,0.54706961]
[1761541889039,0.15144097,1150.4,1147.9,0.54706961]
[1761541889240,0.15144097,1150.4,1148.0,0.54706961]
[1761541889440,0.15144097,1150.4,1148.1,0.54706961]
[1761541889639,0.15144097,1150.4,1147.7,0.65005151]
[1761541889838,0.15144097,1150.4,1147.8,0.5466227]
[1761541890039,0.15144097,1150.4,1147.9,0.5466227]
[1761541890240,0.15144097,1150.4,1148.0,0.5466227]
[1761541890437,0.15144097,1150.4,1148.1,0.5466227]
[1761541890740,0.15144097,1150.4,1147.7,0.65005151]
[1761541890941,0.15144097,1150.4,1147.8,0.54643993]
[1761541891139,0.15144097,1150.4,1147.9,0.54643993]
[1761541891337,0.15144097,1150.4,1148.0,0.54643993]
[1761541891536,0.15144097,1150.4,1148.1,0.54643993]
[1761541891837,0.15144097,1150.4,1148.2,0.54643993]
[1761541892042,0.15144097,1150.4,1147.8,0.65005151]
[1761541892238,0.15144097,1150.4,1147.9,0.54624989]
[1761541892541,0.15144097,1150.4,1148.0,0.54624989]
[1761541892741,0.15144097,1150.4,1148.1,0.54624989]
[1761541892941,0.15144097,1150.4,1148.2,0.54624989]
[1761541893141,0.15144097,1150.4,1147.8,0.65005151]
[1761541893438,0.15138168,1150.7,1147.9,1.19578787]
[1761541893636,0.15138168,1150.7,1148.0,0.54573636]
[1761541893841,0.15138168,1150.7,1148.1,0.54573636]
[1761541894046,0.15138168,1150.7,1148.2,0.54573636]
[1761541894240,0.15138168,1150.7,1148.3,0.54573636]
[1761541894438,0.15138168,1150.7,1148.4,0.54573636]
[1761541894739,0.15138168,1150.7,1148.5,0.54573636]
[1761541894944,0.15138168,1150.7,1147.9,0.65005151]
[1761541895141,0.15138168,1150.7,1148.0,0.54523411]
[1761541895342,0.15138168,1150.7,1148.1,0.54523411]
[1761541895545,0.15138168,1150.7,1148.2,0.54523411]
[1761541895845,0.15138168,1150.7,1148.3,0.54523411]
[1761541896041,0.15138168,1150.7,1148.4,0.54523411]
[1761541896246,0.15138168,1150.7,1147.9,0.65005151]
[1761541896445,0.15138168,1150.7,1148.0,0.54492688]
[1761541896640,0.15138168,1150.7,1147.9,0.65005151]
[1761541896641,0.15138168,1150.7,1148.1,0.54492688]
[1761541896840,0.15138168,1150.7,1148.2,0.54492688]
[1761541897045,0.15138168,1150.7,1148.3,0.54492688]
[1761541897246,0.15138168,1150.7,1148.4,0.54492688]
[1761541897445,0.15138168,1150.7,1147.9,0.65005151]
[1761541897647,0.15138168,1150.7,1148.0,0.54483103]
[1761541897946,0.15138168,1150.7,1148.1,0.54483103]
[1761541898144,0.15138168,1150.7,1148.2,0.54483103]
[1761541898347,0.15138168,1150.7,1148.3,0.54483103]
[1761541898547,0.15138168,1150.7,1148.4,0.54483103]